fUST/lending_fUST_20250828
["ID","MTS","AMOUNT","RATE_DAILY","PERIOD"]
[381881603,1756386655824,-1770.55,0.0002,2]
[381881604,1756386655834,-480.0,0.0002,2]
[381881605,1756386655843,-480.0,0.0002,2]
[381881606,1756386655855,-540.4,0.0002,2]
[381881607,1756386655864,-593.98,0.0002,2]
[381881608,1756386655873,-740.44,0.0002,2]
[381881609,1756386655883,-3372.39,0.0002,2]
[381881610,1756386655892,-480.0,0.0002,2]
[381881611,1756386655901,-876.31,0.0002,2]
[381881612,1756386655910,-510.13,0.0002,2]
[381881613,1756386655919,-480.0,0.0002,2]
[381881614,1756386655929,-480.0,0.0002,2]
[381881615,1756386655938,-480.0,0.0002,2]
[381881616,1756386655947,-495.87,0.0002,2]
[381881617,1756386655957,-2446.17,0.0002,2]
[381881618,1756386655966,-568.1,0.0002,2]
[381881619,1756386655975,-1018.54,0.0002,2]
[381881620,1756386655985,-480.0,0.0002,2]
[381881621,1756386655994,-480.0,0.0002,2]
[381881622,1756386656004,-480.0,0.0002,2]
[381881623,1756386656013,-480.0,0.0002,2]
[381881624,1756386656022,-696.86,0.0002,2]
[381881625,1756386656031,-942.7,0.0002,2]
[381881626,1756386656040,-480.0,0.0002,2]
[381881627,1756386656050,-1627.3,0.0002,2]
[381881628,1756386656059,-480.0,0.0002,2]
[381881629,1756386656068,-151.0,0.0002,2]
[381881630,1756386656078,-480.0,0.0002,2]
[381881631,1756386656087,-787.09,0.0002,2]
[381881632,1756386656097,-609.92,0.0002,2]
[381881633,1756386656107,-480.0,0.0002,2]
[381881634,1756386656117,-480.0,0.0002,2]
[381881635,1756386656127,-480.0,0.0002,2]
[381881636,1756386656136,-536.76,0.0002,2]
[381881637,1756386656146,-480.0,0.0002,2]
[381881638,1756386656156,-587.82,0.0002,2]
[381881639,1756386656167,-480.0,0.0002,2]
[381881640,1756386656176,-3033.61,0.0002,2]
[381881641,1756386656187,-846.54,0.0002,2]
[381881642,1756386656196,-480.0,0.0002,2]
[381881643,1756386656206,-480.0,0.0002,2]
[381881644,1756386656216,-480.0,0.0002,2]
[381881645,1756386656226,-3571.66,0.0002,2]
[381881646,1756386656236,-2236.18,0.0002,2]
[381881647,1756386656246,-480.0,0.0002,2]
[381881648,1756386656257,-480.0,0.0002,2]
[381881649,1756386656267,-480.0,0.0002,2]
[381881650,1756386656278,-480.0,0.0002,2]
[381881651,1756386656289,-2804.02,0.0002,2]
[381881652,1756386656299,-721.69,0.0002,2]
[381881653,1756386656309,-2608.45,0.0002,2]
[381881654,1756386656319,-480.0,0.0002,2]
[381881655,1756386656329,-480.0,0.0002,2]
[381881656,1756386656339,-1478.73,0.0002,2]
[381881657,1756386656349,-547.67581536,0.0002,2]
[381881658,1756386656359,-569.37,0.0002,2]
[381881659,1756386656370,-637.83,0.0002,2]
[381881660,1756386656380,-151.0,0.0002,2]
[381881661,1756386656390,-151.0,0.0002,2]
[381881662,1756386656400,-151.0,0.0002,2]
[381881663,1756386656411,-1297.17,0.0002,2]
[381881664,1756386656422,-480.0,0.0002,2]
[381881665,1756386656432,-1131.71,0.0002,2]
[381881666,1756386656442,-533.44,0.0002,2]
[381881667,1756386656452,-480.0,0.0002,2]
[381881668,1756386656462,-639.96,0.0002,2]
[381881669,1756386656472,-1534.57,0.0002,2]
[381881670,1756386656482,-480.0,0.0002,2]
[381881671,1756386656492,-651.1,0.0002,2]
[381881672,1756386656502,-480.0,0.0002,2]
[381881673,1756386656512,-717.2,0.0002,2]
[381881674,1756386656522,-480.0,0.0002,2]
[381881675,1756386656532,-3391.57,0.0002,2]
[381881676,1756386656546,-605.88,0.0002,2]
[381881677,1756386656556,-482.0082733,0.0002,2]
[381881678,1756386656566,-460.78888435,0.0002,2]
[381881679,1756386656576,-151.0,0.0002,2]
[381881680,1756386656587,-4000.0,0.0002,4]
[381881681,1756386656598,-1118.37,0.0002,2]
[381881682,1756386656608,-480.0,0.0002,2]
[381881683,1756386656619,-186.218424,0.0002,2]
[381881684,1756386656629,-2399.97,0.0002,2]
[381881685,1756386656638,-587.86,0.0002,2]
[381881686,1756386656648,-5606.79,0.0002,2]
[381881687,1756386656657,-535.23,0.0002,2]
[381881688,1756386656667,-489.45,0.0002,2]
[381881689,1756386656677,-480.0,0.0002,2]
[381881690,1756386656687,-480.0,0.0002,2]
[381881691,1756386656697,-480.0,0.0002,2]
[381881692,1756386656706,-2597.91,0.0002,2]
[381881693,1756386656717,-480.0,0.0002,2]
[381881694,1756386656726,-1698.72,0.0002,2]
[381881695,1756386656736,-151.0,0.0002,2]
[381881696,1756386656746,-634.82,0.0002,2]
[381881697,1756386656757,-1185.27,0.0002,2]
[381881698,1756386656767,-480.0,0.0002,2]
[381881699,1756386656777,-482.53557568,0.0002,2]
[381881700,1756386656787,-480.0,0.0002,2]
[381881701,1756386656797,-3000.0,0.0002001,2]
[381881702,1756386656807,-3000.0,0.0002002,2]
[381881703,1756386656817,-514.45769331,0.00020021,2]
[381881704,1756386656827,-586.84147924,0.00020021,2]
[381881705,1756386656837,-1000.0,0.00020021,2]
[381881706,1756386656847,-500.0,0.00020021,2]
[381881707,1756386656857,-1000.0,0.00020021,2]
[381881708,1756386656867,-1000.0,0.00020021,2]
[381881709,1756386656877,-3000.0,0.0002003,2]
[381881710,1756386656887,-3000.0,0.0002004,2]
[381881711,1756386656897,-3000.0,0.0002005,2]
[381881712,1756386656907,-3000.0,0.0002006,2]
[381881713,1756386656917,-1535.6572621,0.0002007,2]
[381881718,1756386779647,2500.0,0.000167,2]
[381881719,1756386907335,2156.0,0.00015558,2]
[381881720,1756387019837,482.0,0.00027397,120]
[381881721,1756387051991,361.4981944,0.00025,120]
[381881723,1756387085876,2156.0,0.00015558,2]
[381881733,1756387265652,1786.96386221,0.0001533,2]
[381881734,1756387265674,369.03613779,0.0001533,2]
[381881736,1756387284308,394.607621,0.00013699,2]
[381881737,1756387445085,2156.0,0.0001533,2]
[381881778,1756387832653,-263.259696,0.00018145,2]
[381881779,1756387832662,-1200.0,0.00018699,2]
[381881780,1756387832672,-215.0,0.00018699,2]
[381881781,1756387832682,-300.0,0.00018699,2]
[381881782,1756387832692,-150.0,0.00018699,2]
[381881783,1756387832702,-300.0,0.00018699,2]
[381881784,1756387832711,-300.0,0.00018699,2]
[381881785,1756387832721,-10000.01,0.000187,2]
[381881786,1756387832731,-2073.34796362,0.00018785,2]
[381881787,1756387832740,-1183.66045273,0.00019068,2]
[381881788,1756387832750,-731.7572984,0.00019078,2]
[381881789,1756387832761,-12710.44222334,0.00019116,2]
[381881791,1756387832771,-160.0,0.00019116,2]
[381881793,1756387832781,-160.0,0.00019116,2]
[381881795,1756387832790,-217.27834477,0.00019116,2]
[381881797,1756387832800,-160.0,0.00019116,2]
[381881800,1756387832810,-425.52029335,0.00019116,2]
[381881801,1756387832819,-529.67291817,0.00019116,2]
[381881802,1756387832829,-160.0,0.00019116,2]
[381881803,1756387832839,-232.64478309,0.00019116,2]
[381881804,1756387832849,-417.15472785,0.00019116,2]
[381881805,1756387832859,-845.47023312,0.00019116,2]
[381881806,1756387832868,-160.0,0.00019116,2]
[381881807,1756387832877,-160.0,0.00019116,2]
[381881808,1756387832887,-160.0,0.00019116,2]
[381881809,1756387832897,-216.18903889,0.00019116,2]
[381881810,1756387832907,-160.0,0.00019116,2]
[381881811,1756387832917,-1041.79,0.00019168,3]
[381881812,1756387832926,-520.9,0.00019168,3]
[381881813,1756387832936,-260.45,0.00019168,3]
[381881814,1756387832945,-781.37,0.00019168,3]
[381881815,1756387832955,-429.37264243,0.00019173,2]
[381881816,1756387832965,-500.0,0.00019173,2]
[381881817,1756387832975,-500.0,0.00019173,2]
[381881818,1756387832984,-500.0,0.00019173,2]
[381881819,1756387832994,-503.3733671,0.00019173,2]
[381881820,1756387833004,-244.16498169,0.00019173,2]
[381881821,1756387833015,-500.0,0.00019173,2]
[381881822,1756387833028,-500.0,0.00019173,2]
[381881823,1756387833038,-181.69236082,0.00019173,2]
[381881824,1756387833048,-500.0,0.00019173,2]
[381881825,1756387833058,-500.0,0.00019173,2]
[381881826,1756387833068,-500.0,0.00019173,2]
[381881827,1756387833078,-500.0,0.00019173,2]
[381881828,1756387833088,-500.0,0.00019173,2]
[381881829,1756387833098,-299.57811734,0.00019173,2]
[381881830,1756387833107,-500.0,0.00019173,2]
[381881831,1756387833118,-480.0,0.00019178,2]
[381881832,1756387833128,-500.0,0.00019178,2]
[381881833,1756387833137,-480.0,0.00019178,2]
[381881834,1756387833147,-482.88355568,0.00019178,2]
[381881835,1756387833157,-480.0,0.00019178,2]
[381881836,1756387833167,-480.0,0.00019178,2]
[381881837,1756387833177,-480.0,0.00019178,2]
[381881838,1756387833187,-480.0,0.00019178,2]
[381881839,1756387833197,-480.0,0.00019178,2]
[381881840,1756387833207,-480.0,0.00019178,2]
[381881841,1756387833216,-562.55565611,0.00019178,2]
[381881842,1756387833226,-480.0,0.00019178,2]
[381881843,1756387833236,-480.0,0.00019178,2]
[381881844,1756387833245,-480.0,0.00019178,2]
[381881845,1756387833255,-480.0,0.00019178,2]
[381881846,1756387833267,-480.0,0.00019178,2]
[381881847,1756387833276,-480.0,0.00019178,2]
[381881848,1756387833285,-512.82,0.00019178,2]
[381881849,1756387833295,-638.41,0.00019178,2]
[381881850,1756387833304,-480.0,0.00019178,2]
[381881851,1756387833314,-609.77650202,0.00019178,2]
[381881853,1756387833324,-480.0,0.00019178,2]
[381881855,1756387833334,-480.0,0.00019178,2]
[381881857,1756387833344,-480.0,0.00019178,2]
[381881858,1756387833353,-480.0,0.00019178,2]
[381881860,1756387833363,-480.0,0.00019178,2]
[381881863,1756387833373,-480.0,0.00019178,2]
[381881864,1756387833383,-480.0,0.00019178,2]
[381881866,1756387833392,-480.0,0.00019178,2]
[381881868,1756387833402,-480.0,0.00019178,2]
[381881870,1756387833413,-480.0,0.00019178,2]
[381881873,1756387833423,-480.0,0.00019178,2]
[381881875,1756387833432,-575.69,0.00019178,2]
[381881876,1756387833442,-480.0,0.00019178,2]
[381881878,1756387833452,-480.0,0.00019178,2]
[381881881,1756387833462,-480.0,0.00019178,2]
[381881882,1756387833471,-480.0,0.00019178,2]
[381881883,1756387833481,-480.0,0.00019178,2]
[381881884,1756387833491,-299.1107453,0.00019178,2]
[381881885,1756387833501,-480.0,0.00019178,2]
[381881886,1756387833512,-480.0,0.00019178,2]
[381881887,1756387833522,-480.0,0.00019178,2]
[381881888,1756387833532,-480.0,0.00019178,2]
[381881889,1756387833543,-480.0,0.00019178,2]
[381881890,1756387833553,-480.0,0.00019178,2]
[381881891,1756387833563,-480.0,0.00019178,2]
[381881892,1756387833573,-480.0,0.00019178,2]
[381881893,1756387833583,-480.0,0.00019178,2]
[381881894,1756387833593,-480.0,0.00019178,2]
[381881895,1756387833603,-480.0,0.00019178,2]
[381881896,1756387833613,-480.0,0.00019178,2]
[381881897,1756387833622,-480.0,0.00019178,2]
[381881898,1756387833634,-480.0,0.00019178,2]
[381881899,1756387833644,-480.0,0.00019178,2]
[381881900,1756387833653,-480.0,0.00019178,2]
[381881901,1756387833664,-480.0,0.00019178,2]
[381881902,1756387833674,-480.0,0.00019178,2]
[381881903,1756387833684,-480.0,0.00019178,2]
[381881904,1756387833694,-480.0,0.00019178,2]
[381881905,1756387833705,-480.0,0.00019178,2]
[381881906,1756387833715,-480.0,0.00019178,2]
[381881907,1756387833725,-480.0,0.00019178,2]
[381881908,1756387833734,-480.0,0.00019178,2]
[381881909,1756387833744,-480.0,0.00019178,2]
[381881910,1756387833754,-480.0,0.00019178,2]
[381881911,1756387833767,-480.0,0.00019178,2]
[381881912,1756387833777,-480.0,0.00019178,2]
[381881913,1756387833788,-480.0,0.00019178,2]
[381881914,1756387833798,-260.38330742,0.00019178,2]
[381881915,1756387833809,-480.0,0.00019178,2]
[381881916,1756387833819,-480.0,0.00019178,2]
[381881917,1756387833830,-480.0,0.00019178,2]
[381881918,1756387833840,-891.22,0.00019178,2]
[381881919,1756387833850,-480.0,0.00019178,2]
[381881920,1756387833860,-480.0,0.00019178,2]
[381881921,1756387833870,-480.0,0.00019178,2]
[381881922,1756387833880,-480.0,0.00019178,2]
[381881923,1756387833890,-480.0,0.00019178,2]
[381881924,1756387833900,-480.0,0.00019178,2]
[381881925,1756387833909,-480.0,0.00019178,2]
[381881926,1756387833919,-480.0,0.00019178,2]
[381881927,1756387833930,-480.0,0.00019178,2]
[381881928,1756387833940,-480.0,0.00019178,2]
[381881929,1756387833950,-480.0,0.00019178,2]
[381881930,1756387833959,-480.0,0.00019178,2]
[381881931,1756387833969,-480.0,0.00019178,2]
[381881932,1756387833979,-480.0,0.00019178,2]
[381881933,1756387833989,-480.0,0.00019178,2]
[381881934,1756387833998,-559.96,0.00019178,2]
[381881935,1756387834009,-480.0,0.00019178,2]
[381881936,1756387834020,-627.55,0.00019178,2]
[381881937,1756387834032,-569.72,0.00019178,2]
[381881938,1756387834086,-480.0,0.00019178,2]
[381881939,1756387834098,-514.37,0.00019178,2]
[381881940,1756387834108,-480.0,0.00019178,2]
[381881941,1756387834118,-480.0,0.00019178,2]
[381881942,1756387834128,-480.0,0.00019178,2]
[381881943,1756387834139,-480.0,0.00019178,2]
[381881944,1756387834148,-825.68,0.00019178,2]
[381881945,1756387834158,-480.0,0.00019178,2]
[381881946,1756387834168,-480.0,0.00019178,2]
[381881947,1756387834178,-512.78,0.00019178,2]
[381881948,1756387834187,-480.0,0.00019178,2]
[381881949,1756387834197,-480.0,0.00019178,2]
[381881950,1756387834207,-692.26,0.00019178,2]
[381881951,1756387834216,-480.0,0.00019178,2]
[381881952,1756387834226,-480.0,0.00019178,2]
[381881953,1756387834235,-480.0,0.00019178,2]
[381881954,1756387834245,-480.0,0.00019178,2]
[381881955,1756387834254,-480.0,0.00019178,2]
[381881956,1756387834268,-480.0,0.00019178,2]
[381881957,1756387834278,-480.0,0.00019178,2]
[381881958,1756387834288,-418.37553712,0.00019178,2]
[381881959,1756387834298,-480.0,0.00019178,2]
[381881960,1756387834308,-480.0,0.00019178,2]
[381881961,1756387834318,-480.0,0.00019178,2]
[381881962,1756387834328,-322.18521964,0.00019178,2]
[381881963,1756387834338,-480.0,0.00019178,2]
[381881964,1756387834348,-480.0,0.00019178,2]
[381881965,1756387834358,-666.02932748,0.00019178,2]
[381881966,1756387834383,-641.05617504,0.00019178,2]
[381881971,1756387838556,-3.50449748,0.00019178,2]
[381881972,1756387838567,-480.0,0.00019178,2]
[381881973,1756387838578,-480.0,0.00019178,2]
[381881974,1756387838588,-258.891848,0.00019178,2]
[381881975,1756387838600,-433.478152,0.00019178,2]
[381881976,1756387838610,-36.54803597,0.00019178,2]
[381881977,1756387838622,-443.45196403,0.00019178,2]
[381881978,1756387838632,-480.0,0.00019178,2]
[381881979,1756387838642,-588.7,0.00019178,2]
[381881980,1756387838652,-480.0,0.00019178,2]
[381881981,1756387838662,-480.0,0.00019178,2]
[381881982,1756387838672,-480.0,0.00019178,2]
[381881983,1756387838682,-906.42,0.00019178,2]
[381881984,1756387838691,-480.0,0.00019178,2]
[381881985,1756387838701,-480.0,0.00019178,2]
[381881986,1756387838710,-532.64,0.00019178,2]
[381881987,1756387838720,-755.86,0.00019178,2]
[381881988,1756387838730,-480.0,0.00019178,2]
[381881989,1756387838739,-480.0,0.00019178,2]
[381881990,1756387838748,-480.0,0.00019178,2]
[381881991,1756387838758,-480.0,0.00019178,2]
[381881992,1756387838772,-480.0,0.00019178,2]
[381881993,1756387838782,-480.0,0.00019178,2]
[381881994,1756387838791,-480.0,0.00019178,2]
[381881995,1756387838801,-480.0,0.00019178,2]
[381881996,1756387838811,-480.0,0.00019178,2]
[381881997,1756387838821,-480.0,0.00019178,2]
[381881998,1756387838831,-480.0,0.00019178,2]
[381881999,1756387838840,-480.0,0.00019178,2]
[381882000,1756387838850,-480.0,0.00019178,2]
[381882001,1756387838860,-480.0,0.00019178,2]
[381882002,1756387838870,-480.0,0.00019178,2]
[381882003,1756387838880,-480.0,0.00019178,2]
[381882004,1756387838889,-480.0,0.00019178,2]
[381882005,1756387838899,-480.0,0.00019178,2]
[381882006,1756387838908,-480.0,0.00019178,2]
[381882007,1756387838918,-480.0,0.00019178,2]
[381882008,1756387838928,-480.0,0.00019178,2]
[381882009,1756387838938,-480.0,0.00019178,2]
[381882010,1756387838948,-480.0,0.00019178,2]
[381882011,1756387838958,-480.0,0.00019178,2]
[381882012,1756387838969,-480.0,0.00019178,2]
[381882013,1756387838979,-480.0,0.00019178,2]
[381882014,1756387838988,-480.0,0.00019178,2]
[381882015,1756387838998,-480.0,0.00019178,2]
[381882016,1756387839008,-883.08,0.00019178,2]
[381882017,1756387839020,-480.0,0.00019178,2]
[381882018,1756387839033,-480.0,0.00019178,2]
[381882019,1756387839042,-480.0,0.00019178,2]
[381882020,1756387839052,-514.34,0.00019178,2]
[381882021,1756387839062,-480.0,0.00019178,2]
[381882022,1756387839073,-591.86,0.00019178,2]
[381882023,1756387839082,-480.0,0.00019178,2]
[381882024,1756387839092,-559.41,0.00019178,2]
[381882025,1756387839102,-480.0,0.00019178,2]
[381882026,1756387839112,-480.0,0.00019178,2]
[381882027,1756387839121,-690.6,0.00019178,2]
[381882028,1756387839131,-480.0,0.00019178,2]
[381882029,1756387839140,-1274.35,0.00019178,2]
[381882030,1756387839150,-1392.08,0.00019178,2]
[381882031,1756387839159,-480.0,0.00019178,2]
[381882032,1756387839168,-480.0,0.00019178,2]
[381882033,1756387839178,-1760.04,0.00019178,2]
[381882034,1756387839187,-603.53,0.00019178,2]
[381882035,1756387839197,-770.95,0.00019178,2]
[381882036,1756387839206,-480.0,0.00019178,2]
[381882037,1756387839215,-281.58566041,0.00019178,2]
[381882038,1756387839229,-198.41433959,0.00019178,2]
[381882039,1756387839238,-113.75232708,0.00019178,2]
[381882040,1756387839250,-366.24767292,0.00019178,2]
[381882041,1756387839259,-729.70471175,0.00019178,2]
[381882051,1756387840631,-187.78006525,0.00019166,2]
[381882052,1756387840641,-2221.13528825,0.00019178,2]
[381882053,1756387840650,-480.0,0.00019178,2]
[381882054,1756387840660,-480.0,0.00019178,2]
[381882055,1756387840669,-648.17,0.00019178,2]
[381882056,1756387840678,-525.44,0.00019178,2]
[381882057,1756387840687,-480.0,0.00019178,2]
[381882058,1756387840696,-497.08,0.00019178,2]
[381882059,1756387840706,-2140.4,0.00019178,2]
[381882060,1756387840715,-824.87,0.00019178,2]
[381882061,1756387840725,-480.0,0.00019178,2]
[381882062,1756387840734,-1628.81,0.00019178,2]
[381882063,1756387840743,-480.0,0.00019178,2]
[381882064,1756387840753,-480.0,0.00019178,2]
[381882065,1756387840762,-480.0,0.00019178,2]
[381882066,1756387840774,-480.0,0.00019178,2]
[381882067,1756387840784,-688.7,0.00019178,2]
[381882068,1756387840793,-480.0,0.00019178,2]
[381882069,1756387840802,-480.0,0.00019178,2]
[381882070,1756387840811,-480.0,0.00019178,2]
[381882071,1756387840821,-480.0,0.00019178,2]
[381882072,1756387840830,-480.0,0.00019178,2]
[381882073,1756387840840,-480.0,0.00019178,2]
[381882074,1756387840849,-480.0,0.00019178,2]
[381882075,1756387840858,-558.1,0.00019178,2]
[381882076,1756387840866,-480.0,0.00019178,2]
[381882077,1756387840876,-480.0,0.00019178,2]
[381882078,1756387840885,-480.0,0.00019178,2]
[381882079,1756387840895,-480.0,0.00019178,2]
[381882080,1756387840904,-480.0,0.00019178,2]
[381882081,1756387840913,-480.0,0.00019178,2]
[381882082,1756387840922,-480.0,0.00019178,2]
[381882083,1756387840931,-480.0,0.00019178,2]
[381882084,1756387840941,-990.24,0.00019178,2]
[381882085,1756387840950,-480.0,0.00019178,2]
[381882086,1756387840959,-3125.2,0.00019178,2]
[381882087,1756387840968,-480.0,0.00019178,2]
[381882088,1756387840978,-631.48,0.00019178,2]
[381882089,1756387840987,-1423.88,0.00019178,2]
[381882090,1756387840996,-480.0,0.00019178,2]
[381882091,1756387841005,-1293.89,0.00019178,2]
[381882092,1756387841016,-747.8,0.00019178,2]
[381882093,1756387841027,-480.0,0.00019178,2]
[381882094,1756387841036,-978.57,0.00019178,2]
[381882095,1756387841045,-480.0,0.00019178,2]
[381882096,1756387841054,-480.0,0.00019178,2]
[381882097,1756387841064,-2406.6,0.00019178,2]
[381882098,1756387841073,-480.0,0.00019178,2]
[381882099,1756387841083,-1306.84,0.00019178,2]
[381882100,1756387841092,-480.0,0.00019178,2]
[381882101,1756387841102,-480.0,0.00019178,2]
[381882102,1756387841112,-1135.03,0.00019178,2]
[381882103,1756387841121,-480.0,0.00019178,2]
[381882104,1756387841130,-480.0,0.00019178,2]
[381882105,1756387841140,-480.0,0.00019178,2]
[381882106,1756387841149,-498.2,0.00019178,2]
[381882107,1756387841158,-480.0,0.00019178,2]
[381882108,1756387841168,-480.0,0.00019178,2]
[381882109,1756387841178,-480.0,0.00019178,2]
[381882110,1756387841187,-481.85010054,0.00019178,2]
[381882111,1756387841197,-480.0,0.00019178,2]
[381882112,1756387841206,-1342.75,0.00019178,2]
[381882113,1756387841216,-480.0,0.00019178,2]
[381882114,1756387841226,-480.0,0.00019178,2]
[381882115,1756387841235,-2099.98,0.00019178,2]
[381882116,1756387841245,-480.0,0.00019178,2]
[381882117,1756387841254,-480.0,0.00019178,2]
[381882118,1756387841264,-2569.3,0.00019178,2]
[381882119,1756387841273,-480.0,0.00019178,2]
[381882120,1756387841283,-460.78888435,0.00019178,2]
[381882121,1756387841293,-480.0,0.00019178,2]
[381882122,1756387841303,-480.0,0.00019178,2]
[381882123,1756387841312,-480.0,0.00019178,2]
[381882124,1756387841322,-480.0,0.00019178,2]
[381882125,1756387841331,-480.0,0.00019178,2]
[381882126,1756387841341,-2008.53,0.00019178,2]
[381882127,1756387841351,-480.0,0.00019178,2]
[381882128,1756387841360,-2273.18,0.00019178,2]
[381882129,1756387841370,-530.14,0.00019178,2]
[381882130,1756387841380,-480.0,0.00019178,2]
[381882131,1756387841390,-513.76,0.00019178,2]
[381882132,1756387841400,-2967.62,0.00019178,2]
[381882133,1756387841410,-533.68,0.00019178,2]
[381882134,1756387841420,-480.0,0.00019178,2]
[381882135,1756387841430,-355.54,0.00019178,2]
[381882136,1756387841439,-480.0,0.00019178,2]
[381882137,1756387841449,-803.44,0.00019178,2]
[381882138,1756387841459,-480.0,0.00019178,2]
[381882139,1756387841469,-480.0,0.00019178,2]
[381882140,1756387841479,-480.0,0.00019178,2]
[381882141,1756387841489,-480.0,0.00019178,2]
[381882142,1756387841499,-480.0,0.00019178,2]
[381882143,1756387841509,-480.0,0.00019178,2]
[381882144,1756387841520,-4905.94,0.00019178,2]
[381882145,1756387841529,-480.0,0.00019178,2]
[381882146,1756387841539,-480.0,0.00019178,2]
[381882147,1756387841550,-740.72,0.00019178,2]
[381882148,1756387841560,-480.0,0.00019178,2]
[381882149,1756387841570,-480.0,0.00019178,2]
[381882150,1756387841581,-480.0,0.00019178,2]
[381882151,1756387841591,-480.0,0.00019178,2]
[381882152,1756387841601,-482.53557568,0.00019178,2]
[381882153,1756387841611,-737.44,0.00019178,2]
[381882154,1756387841621,-1486.38,0.00019178,2]
[381882155,1756387841631,-480.0,0.00019178,2]
[381882156,1756387841641,-1956.66,0.00019178,2]
[381882157,1756387841651,-480.0,0.00019178,2]
[381882158,1756387841661,-480.0,0.00019178,2]
[381882159,1756387841671,-950.68,0.00019178,2]
[381882160,1756387841681,-642.94,0.00019178,2]
[381882161,1756387841691,-685.16,0.00019178,2]
[381882162,1756387841701,-2453.52,0.00019178,2]
[381882163,1756387841711,-1087.8,0.00019178,2]
[381882164,1756387841722,-480.0,0.00019178,2]
[381882165,1756387841732,-1586.18,0.00019178,2]
[381882166,1756387841743,-480.0,0.00019178,2]
[381882167,1756387841754,-480.0,0.00019178,2]
[381882168,1756387841764,-480.0,0.00019178,2]
[381882169,1756387841780,-625.44,0.00019178,2]
[381882170,1756387841791,-4054.5,0.00019178,2]
[381882171,1756387841802,-480.0,0.00019178,2]
[381882172,1756387841813,-480.0,0.00019178,2]
[381882173,1756387841824,-480.0,0.00019178,2]
[381882174,1756387841835,-480.0,0.00019178,2]
[381882175,1756387841847,-480.0,0.00019178,2]
[381882176,1756387841858,-647.88,0.00019178,2]
[381882177,1756387841868,-2654.41,0.00019178,2]
[381882178,1756387841879,-480.0,0.00019178,2]
[381882179,1756387841890,-480.0,0.00019178,2]
[381882180,1756387841901,-917.31,0.00019178,2]
[381882181,1756387841912,-548.02,0.00019178,2]
[381882182,1756387841923,-480.0,0.00019178,2]
[381882183,1756387841934,-480.0,0.00019178,2]
[381882184,1756387841945,-480.0,0.00019178,2]
[381882185,1756387841956,-480.0,0.00019178,2]
[381882186,1756387841968,-766.77,0.00019178,2]
[381882187,1756387841979,-480.0,0.00019178,2]
[381882188,1756387841992,-480.0,0.00019178,2]
[381882189,1756387842004,-480.0,0.00019178,2]
[381882190,1756387842015,-480.0,0.00019178,2]
[381882191,1756387842041,-480.0,0.00019178,2]